Cogmind - Beta 11.1 @@@ ROGUE MODE // 2022.10.02 @ 22:53:21 Player: ILikeMonsters1890 Result: Destroyed by Cetus Guard with Advanced KE Penetrator Performance ------------- Evolutions (4) 2000 Regions Visited (11) 2200 Robots Destroyed (90) 450 Value Destroyed (2187) 2187 Prototype IDs (15) 300 Alien Tech Used (0) 0 Bonus (1088) 1088 TOTAL SCORE: 8225 Bonus ------- High Alert Combat Kills 260 Follower Combat Kills 828 Cogmind --------- Core Integrity 0/850 Matter 300/300 Energy 100/100 System Corruption 2% Temperature Cool (0) Movement Core (250) Ox4 Location -6/Cetus Parts ------- > --- POWER (1) -------- (None) > --- PROPULSION (5) --- Gyrokinetic Inverter > --- UTILITY (6) ------ Medium Storage Unit Advanced Visual Processing Unit Signal Interpreter > --- WEAPON (3) ------- Heavy Mace > --- INVENTORY (10) --- Light Angular Momentum Engine Advanced Heat Sink Small Storage Unit Maul Heavy Mace Peak State ------------ > --- POWER ------------ F-cell Engine > --- PROPULSION ------- Aerolev Unit Aerolev Unit Aerolev Unit Gravmag System Gyrokinetic Inverter > --- UTILITY ---------- Medium Storage Unit Advanced Visual Processing Unit Improved Sensor Array Signal Interpreter Transmission Jammer Improved Propulsion Shielding > --- WEAPON ----------- Heavy Mace Heavy Mace Heavy Flail > --- INVENTORY -------- Light Angular Momentum Engine Fission Core Aerolev Unit Xenon Bombardment Thruster Advanced Heat Sink Small Storage Unit Melee Analysis Suite Mini Grenade Launcher Maul Heavy Mace [Rating: 55] Favorites ----------- Power Light Nuclear Core Engine Ion Engine Power Core Light Nuclear Core Reactor Reinforced Antimatter Reactor Propulsion Aerolev Unit Wheel Wheel Hover Unit Aerolev Unit Utility Seismic Detector Device Seismic Detector Storage Medium Storage Unit Processor Signal Interpreter Protection Improved Propulsion Shielding Weapon Assault Rifle Ballistic Gun Assault Rifle Launcher Mini Grenade Launcher Impact Weapon Heavy Mace Build | -11 -10 -10 -10 -9 -8 -7 -7 -7 -6 -6 -6 ------- Run | Scr Mat Min Exi Min Mat Fac Was Fac Fac Ext Cet Slots Evolved 8 | . . . . . 4 2 . . 2 . . Power . | . . . . . . . . . . . . Propulsion 3 | . . . . . 1 1 . . 1 . . Utility 4 | . . . . . 3 . . . 1 . . Weapon 1 | . . . . . . 1 . . . . . Parts Attached 86 | 8 5 3 . 6 22 8 9 6 9 7 3 Power 13 | 1 . 1 . . 2 . 4 1 3 . 1 Engine 5 | 1 . . . . 1 . . 1 2 . . Core 6 | . . 1 . . 1 . 2 . 1 . 1 Reactor 2 | . . . . . . . 2 . . . . Propulsion 24 | 3 2 . . 1 8 3 . 2 2 2 1 Treads . | . . . . . . . . . . . . Leg . | . . . . . . . . . . . . Wheel 11 | 3 2 . . 1 5 . . . . . . Hover 13 | . . . . . 3 3 . 2 2 2 1 Flight . | . . . . . . . . . . . . Utility 23 | 2 . . . 1 6 4 5 1 2 2 . Device 13 | 1 . . . . 4 2 4 . 2 . . Storage 2 | 1 . . . 1 . . . . . . . Processor 3 | . . . . . 1 1 . . . 1 . Hackware . | . . . . . . . . . . . . Protection 5 | . . . . . 1 1 1 1 . 1 . Artifact . | . . . . . . . . . . . . Weapon 26 | 2 3 2 . 4 6 1 . 2 2 3 1 Energy Gun . | . . . . . . . . . . . . Energy Cannon . | . . . . . . . . . . . . Ballistic Gun 9 | 2 2 1 . 2 2 . . . . . . Ballistic Cannon . | . . . . . . . . . . . . Launcher 8 | . 1 1 . 2 1 . . . 1 2 . Special Weapon . | . . . . . . . . . . . . Impact Weapon 9 | . . . . . 3 1 . 2 1 1 1 Slashing Weapon . | . . . . . . . . . . . . Piercing Weapon . | . . . . . . . . . . . . Special Melee Weapon . | . . . . . . . . . . . . Unidentified Prototypes 5 | . . . . . 1 . 3 . 1 . . Parts Lost 33 | . 2 . . 1 9 2 . 1 1 8 9 Power 3 | . . . . . 1 . . . . . 2 Propulsion 15 | . 2 . . 1 4 1 . . . 5 2 Utility 10 | . . . . . 2 1 . 1 1 3 2 Weapon 5 | . . . . . 2 . . . . . 3 Highest Loss Streak 9 | . 1 . . 1 5 2 . 1 1 7 9 To Critical Strikes 2 | . 1 . . . . . . . . . 1 Average Slot Usage (%) 97 | . 99 100 100 99 96 97 100 99 100 91 49 Engine 5 | . 14 6 . . 4 . . 6 5 6 2 Core 4 | . . 7 14 14 4 7 7 . . . . Wheel 13 | . 27 28 28 27 20 . . . . . . Hover 15 | . . . . . 5 28 30 30 33 27 8 Device 13 | . 14 14 14 14 20 14 9 7 13 10 2 Storage 9 | . 14 14 14 14 9 7 7 7 6 6 6 Processor 8 | . . . . . 9 14 15 15 13 15 15 Protection 3 | . . . . . 4 . 5 6 6 4 . Ballistic Gun 9 | . 27 27 28 26 4 . . . . . . Impact Weapon 12 | . . . . . 11 23 23 23 19 17 9 Naked Turns . | . . . . . . . . . . . . Heaviest Build 36 | 15 15 16 15 20 29 27 27 32 35 36 30 Greatest Support 46 | 26 20 20 20 20 42 32 32 36 44 46 21 Greatest Overweight (x) 2 | . . . . . 1 . . . . 1 2 Average Overweight (x) . | . . . . . . . . . . . 1 Largest Inventory Capacity 10 | 8 8 8 8 10 10 10 10 10 10 10 10 Average Capacity 9 | 7 8 8 8 8 10 10 10 10 10 10 10 Most Carried 10 | 8 8 8 8 10 10 9 10 10 10 10 7 Average Carried 8 | 5 7 7 8 8 8 8 9 9 9 9 5 Final Capacity 10 | 8 8 8 8 10 10 10 10 10 10 10 10 Final Carried 10 | 8 8 8 8 10 10 8 10 10 10 7 5 Class Distribution -------------------- 50% | Mutant 32% | Scavenger-Mutant 13% | Ninja Dominant Class ---------------- Mutant | -10/Materials Scavenger-Mutant | -10/Mines Scavenger-Mutant | -10/Exiles Scavenger-Mutant | -9/Mines Scavenger-Mutant | -8/Materials Mutant | -7/Factory Mutant | -7/Waste Mutant | -7/Factory Ninja | -6/Factory Ninja | -6/Extension Mutant | -6/Cetus Resources | -11 -10 -10 -10 -9 -8 -7 -7 -7 -6 -6 -6 ----------- Run | Scr Mat Min Exi Min Mat Fac Was Fac Fac Ext Cet Matter Collected 1800 | 449 236 25 . 142 479 40 120 50 104 155 . Remotely . | . . . . . . . . . . . . Salvage Created 2412 | 221 260 53 . 59 1099 82 . 349 240 49 . Parts 150 | 26 32 6 . 9 51 4 . 15 4 3 . Haulers Intercepted 5 | . . . . . 2 . . 3 . . . Recyclers Shooed 3 | . 1 . . . 2 . . . . . . Parts Field Recycled . | . . . . . . . . . . . . Retrieved Matter . | . . . . . . . . . . . . Parts Self-Destructed . | . . . . . . . . . . . . Prevented . | . . . . . . . . . . . . Kills | -11 -10 -10 -10 -9 -8 -7 -7 -7 -6 -6 -6 ------- Run | Scr Mat Min Exi Min Mat Fac Was Fac Fac Ext Cet Combat Hostiles Destroyed 53 | . 11 2 . 6 24 2 . 4 3 1 . Melee 9 | . . . . . 2 2 . 3 1 1 . Guns 15 | . 6 . . 1 8 . . . . . . AOE 22 | . 5 2 . 5 10 . . . . . . Classes Destroyed 12 | 3 5 . . 1 2 . . 1 . . . Worker 7 | 2 1 . . . 3 . . . 1 . . Builder 2 | . 1 . . . 1 . . . . . . Tunneler 9 | 7 . 1 . . 1 . . . . . . Hauler 5 | . . . . . 2 . . 3 . . . Recycler 3 | 1 . . . . 2 . . . . . . Operator 4 | . 1 . . . 1 . . . 2 . . Watcher 7 | . 2 . . . 2 1 . 2 . . . Swarmer 23 | . 9 . . 5 6 2 . 1 . . . Grunt 22 | . 2 2 . . 14 . . . 3 1 . Brawler 1 | . . . . 1 . . . . . . . Sentry 5 | . . . . . 4 . . 1 . . . Hunter 2 | . . . . . . . . 2 . . . Best Kill Streak 12 | 4 6 3 . 3 12 3 . 2 2 1 . Combat Bots Only 8 | . 5 2 . 3 8 2 . 2 2 1 . Max Kills in Single Turn 5 | 1 5 2 . 2 3 1 . 1 1 1 . Gunslinging . | . . . . . . . . . . . . Exploded 5 | . 5 1 . 2 2 . . . . . . Melee 1 | . . . . . 1 1 . 1 1 1 . Uniques/NPCs Destroyed . | . . . . . . . . . . . . Combat | -11 -10 -10 -10 -9 -8 -7 -7 -7 -6 -6 -6 -------- Run | Scr Mat Min Exi Min Mat Fac Was Fac Fac Ext Cet Damage Taken 4389 | . 263 17 . 106 1053 226 . 311 110 944 1359 Core 1194 | . 44 . . 32 167 13 . 77 . 130 731 Absorbed by Shields 114 | . . . . . . . . . . 114 . Redirected to Shielding 156 | . . . . . . . . 102 11 43 . Regen/Repaired (Parts) 85 | . . . . . . 66 . 19 . . . Core Remaining (%) 81 | 100 . . . 69 69 . . 87 . . . Volleys Fired 110 | 29 31 2 . 4 35 . . . 8 1 . Largest 2 | 2 2 2 . 2 2 . . . 1 1 . Hottest 56 | 40 50 50 . 53 56 . . . 30 30 . Shots Fired 205 | 58 62 4 . 8 64 . . . 8 1 . Gun 175 | 58 61 2 . 4 50 . . . . . . Cannon . | . . . . . . . . . . . . Launcher 30 | . 1 2 . 4 14 . . . 8 1 . Special . | . . . . . . . . . . . . Kinetic 175 | 58 61 2 . 4 50 . . . . . . Thermal . | . . . . . . . . . . . . Explosive 30 | . 1 2 . 4 14 . . . 8 1 . Electromagnetic . | . . . . . . . . . . . . Robot Hit Streak 8 | 4 8 3 . 4 8 . . . . . . Robot Miss Streak 3 | 2 3 1 . 1 2 . . . . . . Penetration Max . | . . . . . . . . . . . . Secondary Targets . | . . . . . . . . . . . . Shots Hit Robots 178 | 33 32 3 . 5 63 6 . 17 11 7 1 Core Hits 100 | 11 18 5 . 6 46 3 . 7 3 1 . Critical Kills 2 | . . . . . . . . . 2 . . Critical Parts Destroyed 10 | . . . . . 5 . . 1 2 2 . Critical Strikes 12 | . . . . . 5 . . 1 4 2 . Smash 12 | . . . . . 5 . . 1 4 2 . Melee Attacks 115 | . . . . . 28 10 . 32 22 22 1 Impact 115 | . . . . . 28 10 . 32 22 22 1 Slashing . | . . . . . . . . . . . . Piercing . | . . . . . . . . . . . . Sneak Attacks 17 | . . . . . 7 . . 6 3 1 . Combat Hostiles 3 | . . . . . . . . 2 1 . . Follow-up Attacks 15 | . . . . . 2 2 . 6 . 5 . Damage Inflicted 6557 | 430 574 147 . 336 2872 273 . 950 597 330 48 Guns 1369 | 430 413 14 . 22 490 . . . . . . Cannons . | . . . . . . . . . . . . Explosions 1853 | . 161 133 . 314 1245 . . . . . . Melee 3331 | . . . . . 1137 273 . 950 597 330 44 Ramming 4 | . . . . . . . . . . . 4 Kinetic 1369 | 430 413 14 . 22 490 . . . . . . Thermal . | . . . . . . . . . . . . Explosive 1853 | . 161 133 . 314 1245 . . . . . . Electromagnetic . | . . . . . . . . . . . . Impact 3331 | . . . . . 1137 273 . 950 597 330 44 Slashing . | . . . . . . . . . . . . Piercing . | . . . . . . . . . . . . Highest Corruption 2 | . . . . . . . . . 2 2 2 Average Corruption 2 | . . . . . . . . . 2 2 2 Corruption Purged . | . . . . . . . . . . . . Corruption Blocked . | . . . . . . . . . . . . Effects 12 | . . . . . . . . . 3 7 2 Message Errors 1 | . . . . . . . . . 1 . . Matter Fused 5 | . . . . . . . . . 1 3 1 Heat Flow Errors 4 | . . . . . . . . . 1 3 . Energy Discharges 1 | . . . . . . . . . . 1 . Data Loss (major) 1 | . . . . . . . . . . . 1 Overload Shots . | . . . . . . . . . . . . Overflow Damage 994 | . . . . 36 436 21 . 207 153 141 . Projectiles . | . . . . . . . . . . . . Explosions 97 | . . . . 36 61 . . . . . . Melee 897 | . . . . . 375 21 . 207 153 141 . Knockbacks 8 | . . . . . 3 . . . 5 . . Impact 8 | . . . . . 3 . . . 5 . . Kinetic . | . . . . . . . . . . . . Secondary . | . . . . . . . . . . . . Self-Inflicted Damage 133 | . 35 . . 64 33 . . . . . 1 Shots 5 | . 1 . . 2 2 . . . . . . Rammed 3 | . . . . . . . . . . . 3 Targets Rammed 3 | . . . . . . . . . . . 3 Kicked . | . . . . . . . . . . . . Crushed . | . . . . . . . . . . . . Highest Temperature 277 | . . 5 . . 1 . . . 140 277 . Average Temperature 95 | . . 3 . . 1 . . . 78 111 . Received Heat Transfer 811 | . . 9 . . 459 . . 15 54 76 198 Siege Activations . | . . . . . . . . . . . . Robots Corrupted . | . . . . . . . . . . . . Combat Hostiles . | . . . . . . . . . . . . Parts Fried 18 | . . . . . 12 . . 3 3 . . Impact Corruptions 33 | . . . . . 15 1 . 4 8 5 . Robots Melted . | . . . . . . . . . . . . Combat Hostiles . | . . . . . . . . . . . . Parts Melted . | . . . . . . . . . . . . Heat Transferred . | . . . . . . . . . . . . Parts Sabotaged . | . . . . . . . . . . . . Parts Stolen . | . . . . . . . . . . . . Parts Stripped . | . . . . . . . . . . . . Power Chain Reactions . | . . . . . . . . . . . . Missiles Intercepted . | . . . . . . . . . . . . Alert | -11 -10 -10 -10 -9 -8 -7 -7 -7 -6 -6 -6 ------- Run | Scr Mat Min Exi Min Mat Fac Was Fac Fac Ext Cet Peak Influence 1050 | 50 415 273 . 223 702 407 142 1050 822 526 309 Initial 514 | . 32 89 . . 86 285 142 99 514 269 294 Average 378 | 26 146 206 . 102 478 349 142 606 643 363 254 Maximum Alert Level 3 | . 2 1 . 1 3 2 . 3 3 2 1 Low Security (%) 33 | 100 57 36 . 85 18 . 100 15 . 17 . Level 1 22 | . 39 63 . 14 6 96 . 17 . 37 100 Level 2 29 | . 3 . . . 66 3 . 12 64 44 . Level 3 15 | . . . . . 8 . . 54 35 . . Level 4 . | . . . . . . . . . . . . Level 5 . | . . . . . . . . . . . . High Security . | . . . . . . . . . . . . Max Security . | . . . . . . . . . . . . Squads Dispatched 11 | . 2 . . . 3 . . 1 3 . 2 Investigation 4 | . . . . . . . . 1 1 . 2 Extermination . | . . . . . . . . . . . . Reinforcement 5 | . 2 . . . 2 . . . 1 . . Assault 2 | . . . . . 1 . . . 1 . . Garrison . | . . . . . . . . . . . . Intercept . | . . . . . . . . . . . . Searches Triggered . | . . . . . . . . . . . . Construction Impeded 1 | . . . . . 1 . . . . . . Haulers Reinforced . | . . . . . . . . . . . . Active Scanning Responses . | . . . . . . . . . . . . Cargo Convoy Interrupts . | . . . . . . . . . . . . Stealth | -11 -10 -10 -10 -9 -8 -7 -7 -7 -6 -6 -6 --------- Run | Scr Mat Min Exi Min Mat Fac Was Fac Fac Ext Cet Distress Signals 10 | . 1 . . 1 3 . . . 1 3 1 Communications Jammed . | . . . . . . . . . . . . Distress Signals . | . . . . . . . . . . . . Times Spotted 125 | . 17 2 . 6 36 5 . 21 15 18 5 Peak Tracking Total 14 | . 6 2 . 3 9 3 . 5 4 14 5 Tactical Retreats 6 | . 1 . . . 1 . . . . 4 . Traps | -11 -10 -10 -10 -9 -8 -7 -7 -7 -6 -6 -6 ------- Run | Scr Mat Min Exi Min Mat Fac Was Fac Fac Ext Cet Traps Triggered 5 | . . . . . . 1 . 1 3 . . Indirectly . | . . . . . . . . . . . . Trap Hack Attempts . | . . . . . . . . . . . . Triggered . | . . . . . . . . . . . . Disarmed . | . . . . . . . . . . . . Reprogrammed . | . . . . . . . . . . . . Reused . | . . . . . . . . . . . . Traps Extracted . | . . . . . . . . . . . . Installed . | . . . . . . . . . . . . Triggered . | . . . . . . . . . . . . Machines | -11 -10 -10 -10 -9 -8 -7 -7 -7 -6 -6 -6 ---------- Run | Scr Mat Min Exi Min Mat Fac Was Fac Fac Ext Cet Machines Disabled 16 | . 1 5 . 1 4 . . . 2 3 . Max in Single Turn 5 | . 1 5 . 1 3 . . . 1 2 . Garrison Access 2 | . . . . . . . . 1 1 . . Energy Cycler 2 | . . . . . . . . . . 2 . Machines Sabotaged . | . . . . . . . . . . . . Garrisons Compromised . | . . . . . . . . . . . . Overloaded Fab Kills . | . . . . . . . . . . . . Hacking | -11 -10 -10 -10 -9 -8 -7 -7 -7 -6 -6 -6 --------- Run | Scr Mat Min Exi Min Mat Fac Was Fac Fac Ext Cet Machines Accessed 40 | . 3 . 4 . 7 3 . 6 10 5 2 Terminals 25 | . 2 . . . 6 2 . 2 6 5 2 Fabricators 2 | . . . . . . . . 1 1 . . Repair Stations 2 | . . . . . . 1 . 1 . . . Recycling Units 3 | . 1 . . . . . . 1 1 . . Scanalyzers 2 | . . . . . 1 . . . 1 . . Garrison Access 2 | . . . . . . . . 1 1 . . Total Hacks 108 | . 10 . 4 . 20 6 . 13 32 15 8 Successful 51 | . 4 . 4 . 10 5 . 6 14 5 3 Failed 57 | . 6 . . . 10 1 . 7 18 10 5 Catastrophic 9 | . . . . . 2 . . 2 3 . 2 Database Lockouts . | . . . . . . . . . . . . Manual 13 | . 2 . . . 6 . . 1 1 3 . Terminals 75 | . 7 . . . 17 4 . 4 20 15 8 Fabricators 4 | . . . . . . . . 2 2 . . Repair Stations 7 | . . . . . . 2 . 5 . . . Recycling Units 9 | . 3 . . . . . . 1 5 . . Scanalyzers 6 | . . . . . 3 . . . 3 . . Garrison Access 3 | . . . . . . . . 1 2 . . Terminal Hacks 34 | . 3 . 4 . 7 3 . . 9 5 3 Record 8 | . . . 4 . . . . . 1 . 3 Robot Analysis 1 | . 1 . . . . . . . . . . Prototype ID Bank 5 | . . . . . 2 1 . . 1 1 . Open Door 1 | . . . . . . . . . . 1 . Open DSF 1 | . . . . . . 1 . . . . . Level Access Points 1 | . . . . . 1 . . . . . . Branch Access Points 2 | . 1 . . . . . . . 1 . . Emergency Access Points 2 | . . . . . 1 1 . . . . . Alert Level 1 | . . . . . . . . . 1 . . Unreport Threat 2 | . . . . . . . . . 1 1 . Locate Traps 2 | . . . . . 1 . . . 1 . . Dispatch Records 2 | . . . . . . . . . 1 1 . Assault Status 1 | . . . . . . . . . 1 . . Hauler Manifests 1 | . . . . . . . . . 1 . . Zone Layout 4 | . 1 . . . 2 . . . . 1 . Fabricator Hacks 1 | . . . . . . . . 1 . . . Build 1 | . . . . . . . . 1 . . . Repair Station Hacks 5 | . . . . . . 2 . 3 . . . Scan Component 3 | . . . . . . 1 . 2 . . . Repair 2 | . . . . . . 1 . 1 . . . Recycling Unit Hacks 3 | . 1 . . . . . . . 2 . . Retrieve Matter 1 | . . . . . . . . . 1 . . Retrieve Components 2 | . 1 . . . . . . . 1 . . Scanalyzer 5 | . . . . . 3 . . . 2 . . Insert Component 2 | . . . . . 1 . . . 1 . . Analyze 3 | . . . . . 2 . . . 1 . . Garrison Access Hacks 2 | . . . . . . . . 1 1 . . Seal Access 2 | . . . . . . . . 1 1 . . Unauthorized Hacks 1 | . . . . . . . . 1 . . . Terminals . | . . . . . . . . . . . . Fabricators 1 | . . . . . . . . 1 . . . Liberate 1 | . . . . . . . . 1 . . . Repair Stations . | . . . . . . . . . . . . Recycling Units . | . . . . . . . . . . . . Scanalyzers . | . . . . . . . . . . . . Garrison Access . | . . . . . . . . . . . . Data Cores Recovered 1 | . . . . . . . . . 1 . . Used . | . . . . . . . . . . . . Hacking Detections 30 | . 3 . . . 4 3 . 4 9 5 2 Full Trace Events 4 | . . . . . . . . 1 1 . 2 Feedback Events . | . . . . . . . . . . . . Feedback Blocked . | . . . . . . . . . . . . Robot Schematics Acquired . | . . . . . . . . . . . . Robots Built 1 | . . . . . . . . 1 . . . Authchips . | . . . . . . . . . . . . Time 40 | . . . . . . . . 40 . . . Total Robot Build Rating 1 | . . . . . . . . 1 . . . Part Schematics Acquired 2 | . . . . . 1 . . . 1 . . Parts Built . | . . . . . . . . . . . . Authchips . | . . . . . . . . . . . . Time . | . . . . . . . . . . . . Total Part Build Rating . | . . . . . . . . . . . . Parts Repaired 2 | . . . . . . 1 . 1 . . . Time 69 | . . . . . . 30 . 39 . . . Parts Recycled . | . . . . . . . . . . . . Recycled Matter . | . . . . . . . . . . . . Retrieved Matter . | . . . . . . . . . . . . Retrieved Components . | . . . . . . . . . . . . Parts Scanalyzed 2 | . . . . . 1 . . . 1 . . Part Schematics Acquired 2 | . . . . . 1 . . . 1 . . Parts Damaged . | . . . . . . . . . . . . Bothacking | -11 -10 -10 -10 -9 -8 -7 -7 -7 -6 -6 -6 ------------ Run | Scr Mat Min Exi Min Mat Fac Was Fac Fac Ext Cet Used RIF Installer . | . . . . . . . . . . . . Robots Hacked . | . . . . . . . . . . . . Non-combat . | . . . . . . . . . . . . Combat . | . . . . . . . . . . . . Robot Hacks Applied . | . . . . . . . . . . . . Relay Couplers Released . | . . . . . . . . . . . . Fabnet Peak Effective % . | . . . . . . . . . . . . Robots Rewired . | . . . . . . . . . . . . Allies Hacked 2 | . . . . . . . . . . 2 . Hacks Repelled . | . . . . . . . . . . . . Allies | -11 -10 -10 -10 -9 -8 -7 -7 -7 -6 -6 -6 -------- Run | Scr Mat Min Exi Min Mat Fac Was Fac Fac Ext Cet Total Allies 22 | . . . . . . . 20 1 . 1 . Largest Group 21 | . . . . . . . 20 21 14 3 . Highest-Rated Group 546 | . . . . . . . 536 546 410 188 . Highest-Rated Ally 130 | . . . . . . . 35 35 31 130 . Total Orders . | . . . . . . . . . . . . Ally Attacks 179 | . . . . . . . . 96 66 17 . Total Damage 4272 | . . . . . . . . 2660 1032 580 . Kills 33 | . . . . . . . . 24 5 4 . Allies Corrupted 1 | . . . . . . . . 1 . . . Allies Melted . | . . . . . . . . . . . . Intel | -11 -10 -10 -10 -9 -8 -7 -7 -7 -6 -6 -6 ------- Run | Scr Mat Min Exi Min Mat Fac Was Fac Fac Ext Cet Robot Analysis Total 1 | . 1 . . . . . . . . . . Derelict Logs Recovered 1 | . . . . 1 . . . . . . . Drone Launches . | . . . . . . . . . . . . Drone Recoveries . | . . . . . . . . . . . . Exploration | -11 -10 -10 -10 -9 -8 -7 -7 -7 -6 -6 -6 ------------- Run | Scr Mat Min Exi Min Mat Fac Was Fac Fac Ext Cet Turns Passed 4276 | 271 464 162 329 306 864 192 143 646 516 300 83 Spaces Moved 4731 | 181 261 176 412 342 503 251 229 1109 779 424 64 Core 14 | 14 . . . . . . . . . . . Treads . | . . . . . . . . . . . . Legs . | . . . . . . . . . . . . Wheels 1744 | 167 261 176 412 342 386 . . . . . . Hover 2973 | . . . . . 117 251 229 1109 779 424 64 Flight . | . . . . . . . . . . . . Fastest Speed 38 | 50 80 80 80 80 42 38 38 38 40 40 61 Average Speed 57 | 78 80 80 80 80 79 38 38 38 40 53 111 Slowest Speed 150 | 90 80 80 80 80 111 38 38 45 40 106 150 Overloaded Moves . | . . . . . . . . . . . . Propulsion Burnouts . | . . . . . . . . . . . . Robots Hopped . | . . . . . . . . . . . . Cave-ins Triggered . | . . . . . . . . . . . . Exploration Rate (%) 45 | 6 41 50 79 70 51 9 86 28 21 57 49 Regions Visited 11 Branch Regions 5 Pre-discovered Areas . | . . . . . . . . . . . . Known Exits Taken 5 | . 1 . . . 1 . . 1 1 1 . Unknown Exits Taken 4 | 1 . 1 1 1 . . . . . . . Scrap Searched 3 | . . 1 . 2 . . . . . . . Spaces Dug 90 | . . . . . 1 . . 3 85 1 . Terrain Destroyed 200 | . 6 18 . 22 47 . . 3 85 19 . Melee 9 | . . . . . 1 . . 3 4 1 . Projectile . | . . . . . . . . . . . . AOE 191 | . 6 18 . 22 46 . . . 81 18 . Terrain Rammed . | . . . . . . . . . . . . Walls Destroyed . | . . . . . . . . . . . . Machines Disabled . | . . . . . . . . . . . . Actions | -11 -10 -10 -10 -9 -8 -7 -7 -7 -6 -6 -6 --------- Run | Scr Mat Min Exi Min Mat Fac Was Fac Fac Ext Cet Total 5918 | 253 454 192 411 364 858 334 282 1287 942 469 72 Wait 764 | 13 150 8 . 6 237 61 33 129 110 17 . Move 4721 | 180 260 175 411 341 502 251 228 1108 778 423 64 Hop . | . . . . . . . . . . . . Pick Up 89 | 19 5 2 . 5 24 5 7 12 6 3 1 Fast Attach . | . . . . . . . . . . . . Attach 41 | 7 2 . . 1 13 6 1 1 3 4 3 Detach . | . . . . . . . . . . . . Swap 45 | 1 3 3 . 5 9 2 8 5 6 3 . Drop 44 | 4 3 2 . 2 12 1 5 10 3 2 . Fire 110 | 29 31 2 . 4 35 . . . 8 1 . Melee 93 | . . . . . 26 8 . 22 20 16 1 Ram 3 | . . . . . . . . . . . 3 Kick . | . . . . . . . . . . . . Crush . | . . . . . . . . . . . . Escape Stasis 8 | . . . . . . . . . 8 . . Rewire . | . . . . . . . . . . . . Trap . | . . . . . . . . . . . . Miscellaneous . | . . . . . . . . . . . . Route ------- -11/Scrapyard -10/Materials -10/Mines -10/Exiles (discovered 2 exits: [*Min x2]) -9/Mines -8/Materials (discovered 3 exits: *Fac x3) -7/Factory -7/Waste -7/Factory -6/Factory (discovered 4 exits: Low x2 / *Ext x2) -6/Extension (discovered 3 exits: *Fac x2 / *Cet) -6/Cetus History --------- Turn | Location | Event 13 | -11/Scrapyard | Discovered new exit (range 16) 272 | -11/Scrapyard | Entered Materials 319 | -10/Materials | Identified exit to Mines 327 | -10/Materials | Build established: Mutant 736 | -10/Materials | Entered Mines 844 | -10/Mines | Met a Derelict bent on vengeance 894 | -10/Mines | Deemed a non-threat by the Exiles lab entrance 895 | -10/Mines | Discovered new exit (range 5) 898 | -10/Mines | Entered Exiles 898 | -10/Exiles | Found Exiles lab abandoned 911 | -10/Exiles | Discovered new exit (range 14) 1056 | -10/Exiles | Discovered new exit (range 14) 1079 | -10/Exiles | Build established: Scavenger-Mutant 1227 | -10/Exiles | Entered Mines 1274 | -9/Mines | Received a Rocket Launcher from a helpful Derelict 1395 | -9/Mines | Assembled infested the area 1513 | -9/Mines | Discovered new exit (range 8) 1515 | -9/Mines | Learned Materials terminal intel 1533 | -9/Mines | Entered Materials 1533 | -8/Materials | Evolved 4 slots: Propulsion x1, Utility x3 1534 | -8/Materials | Loaded intel: 12 terminal locations 1787 | -8/Materials | Destroyed 8 combat bots 1792 | -8/Materials | Lost 5 parts (1p3n1w) 2333 | -8/Materials | First assault squad dispatched 2378 | -8/Materials | Identified exit to Factory 2397 | -8/Materials | Entered Factory 2397 | -7/Factory | Evolved 2 slots: Propulsion x1, Weapon x1 2425 | -7/Factory | Identified exit to DSF 2510 | -7/Factory | Build established: Mutant 2540 | -7/Factory | Repaired Aerolev Unit 2589 | -7/Factory | Manually triggered Chute Trap 2589 | -7/Factory | Sucked down chute 2589 | -7/Factory | Entered Waste 2590 | -7/Waste | Joined by Warlord forces that had cleared the area 2692 | -7/Waste | Discovered new exit (range 12) 2698 | -7/Waste | Identified exit to Factory 2732 | -7/Waste | Entered Factory 2732 | -7/Factory | Accompanied by 20 allies 2890 | -7/Factory | Fabricated T-07 Excavator (x1) 3158 | -7/Factory | Discovered new exit (range 19) 3178 | -7/Factory | Identified exit to Factory 3328 | -7/Factory | Repaired Broken Gyrokinetic Inverter? 3378 | -7/Factory | Entered another Factory area 3378 | -6/Factory | Accompanied by 14 allies 3378 | -6/Factory | Evolved 2 slots: Propulsion x1, Utility x1 3688 | -6/Factory | Identified exit to Lower Caves 3688 | -6/Factory | Identified exit to Extension 3728 | -6/Factory | First assault squad dispatched 3812 | -6/Factory | Build established: Ninja 3894 | -6/Factory | Entered Extension 3894 | -6/Extension | Accompanied by 2 allies 3914 | -6/Extension | Disrupted transfer network 3915 | -6/Extension | Energy Cycler disabled 3924 | -6/Extension | Rescued a captive Derelict 3928 | -6/Extension | Rescued a captive Derelict 3935 | -6/Extension | Rescued a captive Derelict 4020 | -6/Extension | Rescued A7 4031 | -6/Extension | Spotted B-75 Beast 4088 | -6/Extension | Spotted B-75 Beast 4089 | -6/Extension | Discovered new exit (range 18) 4146 | -6/Extension | Lost 7 parts (5n2u) 4170 | -6/Extension | Discovered new exit (range 19) 4170 | -6/Extension | Discovered new exit (range 19) 4188 | -6/Extension | Identified exit to Factory 4191 | -6/Extension | Identified exit to Cetus 4194 | -6/Extension | Entered Cetus 4208 | -6/Cetus | Spotted Cetus Guard 4208 | -6/Cetus | Spotted Cetus Guard 4208 | -6/Cetus | Spotted Cetus Guard 4208 | -6/Cetus | Spotted Cetus Guard 4233 | -6/Cetus | Core integrity fell below 50% 4272 | -6/Cetus | Core integrity fell below 20% 4275 | -6/Cetus | Lost 9 parts (2p2n2u3w) 4277 | -6/Cetus | Destroyed by Cetus Guard with Advanced KE Penetrator Last Messages --------------- Post-deployment revisions of the [MAIN.C] neural network, before application of self-engineered evolution to correct flaws discovered only after long-term execution. A single copy of each previous revision is stored in the [Cetus Mainframe] for research and analysis. Most revisions have been allowed to continue to remain aware, though in isolation from all external stimuli except in controlled experiments. 04260_ ALERT: Suspicious activity at Terminal C002. Dispatching Investigation squad. 04264_ Penetrated by Slug. 04264_ Research Interface disabled. 04266_ Table destroyed. 04267_ Slug penetrates Cetus Guard. 04267_ Cetus Terminal disabled. 04271_ Penetrated by Slug. 04272_ Slammed into Cetus Guard. 04273_ Gyrokinetic Inverter broken. 04273_ Destabilizing: Short circuit. 04274_ Penetrated by Slug. 04276_ Slammed into Cetus Guard. 04277_ Penetrated by Slug. Map ----- +----------------------------------------------------+ | ???# ??????????????????????????????????????????? | | ???# ??????????????????????????????????????????? | | ???# #?????????????????????????????????????????? | | ???# #?????????????????????????????????????????? | | ???# #?????????????????????????????????????????? | | ???# #?????????????????????????????????????????? | | ???# #?????????????????????????????????????????? | | ???# #?????????????????????????????????????????? | | ???# #?????????????????????????????????????????? | | ???# #?????????????????????????????????????????? | | ???# #?????????????????????????????????????????? | | ???# #????????????????##???????????????????????? | | ???# #???????????"?""" """ """?????????????????? | | ???# #??????????# " """"""" ?????????????????? | | ???# #??????????#""""""""""""""????????????????? | | ???# #??????????#""""" """ """""#??????????????? | | ???# #??????????#""""""" """""""#?? ""????????? | | ???# #??????????#""" " " """#? ""????????? | | ??## #????#####?#" """ """ "#" ""#???????? | | "##" ###### ### #???????? | | ; +???????? | | !% ; +???????? | | ; +???????? | | ##########"## ###" Y #???????? | | ?????????########?#" ""Y%Y """""""#????????????? | | ??????????????????######Y@#########??????????????? | | ??????????????????#" " ""#??????????????????? | | ??????????????????###" #??????????????????? | | ??????????????????#" " "#??????????????????? | | ??????????????????###" "" #??????????????????? | | ??????????????????#" "###??????????????????? | | ??????????????????#" """"#??????????????????? | | ??????????????????#" """#??????????????????? | | ??????????????????#" """"#??????????????????? | | ??????????????????### "###??????????????????? | | ??????????????????# """#??????????????????? | | ??????????????????#" " T"""#??????????????????? | | ??????????????????#" """"#??????????????????? | | ??????????????????#" " #"###??????????????????? | | ??????????????????# #""????????????????????? | | ??????????????????#""" """#"""???????????????????? | | ??????????????????#########?###??????????????????? | | ?????????????????????????????????????????????????? | | ?????????????????????????????????????????????????? | | ?????????????????????????????????????????????????? | | ?????????????????????????????????????????????????? | | ?????????????????????????????????????????????????? | | ?????????????????????????????????????????????????? | | ?????????????????????????????????????????????????? | | ?????????????????????????????????????????????????? | +----------------------------------------------------+ Best States ------------- Heat Dissipation 72 Energy Generation 19 Energy Capacity 500 Matter Stores 300 Matter Capacity 300 Sight Range 20 Robot Scan Range 15 Terrain Scan Density 10 Jamming Range 12 Armor Coverage 150 Propulsion Shielding 66 Evasion (%) 57 Melee Accuracy 5 Item Schematics ----------------- Wheel | -8/Materials | Scanalyzed Xenon Bombardment Thruster | -6/Factory | Scanalyzed Robot Schematics ------------------ None Fabricated ------------ T-07 Excavator | x1 | -7/Factory | Preloaded Alien Tech Used ----------------- None Achievements -------------- No Signal Quick And Dirty Wheee! Challenges ------------ None Game ------ Seed LargeIonHammer Manual? 0 Play Time 01:05:55 Cumulative 69.6 hours Start 2022.10.02 @ 21:44:03 End 2022.10.02 @ 22:53:21 Sessions 1 Manual Loads 0 Difficulty Rogue Special Mode None Game No. 76 Rogue 76 Adventurer 0 Explorer 0 Win Type - Total 0 Types 0/0/0/0/0/0/0/0/0 Lore% 53 Gallery% 42 Achievement% 37 Wizard Run 0 Options --------- ASCII 0 Keyboard 0 Movement Numpad Keybinds 0 Fullscreen 2 Font 18/SmallcapsGlow Map View 76x50 Tactical HUD 1 Map Filters NONE Filters NONE Steam 1 RUN: 7ed99233-cf82-4911-8acd-b70b50364203